bitfinex/quotes_BTCUSD_20241116
["timestamp","ask_amount","ask_price","bid_price","bid_amount"]
[1731793389886,0.004,90946.0,90945.0,0.19300623]
[1731793392116,0.004,90946.0,90945.0,0.24080623]
[1731793392794,0.004,90946.0,90945.0,0.1586131]
[1731793393000,0.004,90946.0,90945.0,0.24080623]
[1731793393502,0.004,90946.0,90945.0,0.28540503]
[1731793394878,0.004,90946.0,90945.0,0.02723351]
[1731793395091,0.004,90946.0,90945.0,0.10942664]
[1731793395313,0.004,90946.0,90945.0,0.08219313]
[1731793395572,0.004,90946.0,90945.0,0.19214913]
[1731793397559,0.004,90948.0,90947.0,0.109954]
[1731793397776,0.004,90948.0,90947.0,0.19214713]
[1731793399175,0.0017142,90953.0,90947.0,0.19214713]
[1731793399176,0.0017142,90953.0,90952.0,0.109948]
[1731793399399,0.0057142,90953.0,90952.0,0.27433426]
[1731793399627,0.0057142,90953.0,90952.0,0.19214113]
[1731793403917,0.0017142,90953.0,90952.0,0.19214113]
[1731793404135,0.0057142,90953.0,90952.0,0.19214113]
[1731793406171,0.0057142,90953.0,90952.0,0.27653302]
[1731793407098,0.0017142,90953.0,90952.0,0.39059557]
[1731793407302,0.0017142,90953.0,90952.0,0.63387777]
[1731793407490,0.0017142,90953.0,90952.0,0.68280476]
[1731793407733,0.0017142,90953.0,90952.0,0.48709681]
[1731793409807,0.0017142,90953.0,90952.0,0.63379467]
[1731793410042,0.0017142,90953.0,90952.0,0.48709681]
[1731793410287,0.0017142,90953.0,90952.0,0.63379562]
[1731793410513,0.0017142,90953.0,90952.0,0.48709681]
[1731793410734,0.0017142,90953.0,90952.0,0.63378226]
[1731793411397,0.0017142,90953.0,90952.0,0.48709681]
[1731793412508,0.0017142,90953.0,90952.0,0.63380042]
[1731793412738,0.0017142,90953.0,90952.0,0.48709681]
[1731793412963,0.0017142,90953.0,90952.0,0.63380042]
[1731793413634,0.0017142,90953.0,90952.0,0.48709681]
[1731793414484,0.0017142,90953.0,90952.0,0.63380042]
[1731793414925,0.0017142,90953.0,90952.0,0.48709681]
[1731793415144,0.0017142,90953.0,90952.0,0.63380042]
[1731793415785,0.0017142,90953.0,90952.0,0.48709681]
[1731793416004,0.0017142,90953.0,90952.0,0.63380042]
[1731793416202,0.0017142,90953.0,90952.0,0.48709681]
[1731793416472,0.0017142,90953.0,90952.0,0.63380042]
[1731793416688,0.0017142,90953.0,90952.0,0.48709681]
[1731793417838,0.0017142,90953.0,90952.0,0.63380042]
[1731793418046,0.0017142,90953.0,90952.0,0.48709681]
[1731793418262,0.0017142,90953.0,90952.0,0.63380042]
[1731793419587,0.0017142,90953.0,90952.0,0.48709681]
[1731793421189,0.0017142,90953.0,90952.0,0.63372466]
[1731793421815,0.0017142,90953.0,90952.0,0.41139681]
[1731793422058,0.0017142,90953.0,90952.0,0.24701055]
[1731793422273,0.0017142,90953.0,90952.0,0.32920368]
[1731793422708,0.0017142,90953.0,90952.0,0.41139681]
[1731793424692,0.0017142,90953.0,90952.0,0.55803903]
[1731793424909,0.0017142,90953.0,90952.0,0.41139681]
[1731793425386,0.0017142,90953.0,90952.0,0.55803886]
[1731793425615,0.0017142,90953.0,90952.0,0.41139681]
[1731793428292,0.0017142,90953.0,90952.0,0.5580941]
[1731793428502,0.0017142,90953.0,90952.0,0.41139681]
[1731793429627,0.0017142,90953.0,90952.0,0.24701055]
[1731793429842,0.0017142,90953.0,90952.0,0.41139681]
[1731793430707,0.0017142,90953.0,90952.0,0.60694168]
[1731793432702,0.0017142,90953.0,90952.0,0.41139681]
[1731793434718,0.0017142,90953.0,90952.0,0.6558279]
[1731793435594,0.0017142,90953.0,90952.0,0.41139681]
[1731793436671,0.0017142,90953.0,90952.0,0.6562139]
[1731793437135,0.0017142,90953.0,90952.0,0.41139681]
[1731793437373,0.0017142,90953.0,90952.0,0.65630677]
[1731793437606,0.0017142,90953.0,90952.0,0.41139681]
[1731793437840,0.0017142,90953.0,90952.0,0.44276476]
[1731793448081,0.0017142,90953.0,90952.0,0.73654527]
[1731793448342,0.0017142,90953.0,90952.0,0.73714321]
[1731793449213,0.0017142,90953.0,90952.0,0.44276476]
[1731793450214,0.0017142,90953.0,90952.0,0.41976476]
[1731793453011,0.0017142,90953.0,90952.0,0.33757163]
[1731793453650,0.0017142,90953.0,90952.0,0.41976476]
[1731793453867,0.0017142,90953.0,90952.0,0.33757163]
[1731793454080,0.0017142,90953.0,90952.0,0.41976476]
[1731793458966,0.0017142,90953.0,90949.0,0.29490772]
[1731793458967,0.0510142,90953.0,90949.0,0.29490772]
[1731793459177,0.0510142,90953.0,90948.0,0.53600398]
[1731793459178,0.0510142,90953.0,90952.0,0.109948]
[1731793460185,0.0510142,90953.0,90952.0,0.3556823]
[1731793460502,0.0510142,90953.0,90952.0,0.35563785]
[1731793461379,0.0510142,90953.0,90952.0,0.109948]
[1731793462669,0.0510142,90953.0,90952.0,0.30644042]
[1731793462926,0.0510142,90953.0,90952.0,0.109948]
[1731793463369,0.0510142,90953.0,90952.0,0.30644107]
[1731793463605,0.0510142,90953.0,90952.0,0.30643813]
[1731793464515,0.0510142,90953.0,90952.0,0.109948]
[1731793464948,0.0510142,90953.0,90952.0,0.30643813]
[1731793465153,0.0510142,90953.0,90952.0,0.109948]
[1731793466430,0.0510142,90953.0,90952.0,0.30643813]
[1731793466651,0.0510142,90953.0,90952.0,0.109948]
[1731793467547,0.0510142,90953.0,90952.0,0.30643813]
[1731793467808,0.0510142,90953.0,90952.0,0.109948]
[1731793468017,0.0510142,90953.0,90952.0,0.30643813]
[1731793469369,0.0510142,90953.0,90952.0,0.109948]
[1731793469594,0.0510142,90953.0,90952.0,0.30643813]
[1731793470030,0.0510142,90953.0,90941.0,0.29578123]
[1731793470031,0.188448,90952.0,90950.0,0.19649013]
[1731793470261,0.0510142,90953.0,90946.0,0.109955]
[1731793470262,0.004,90950.0,90949.0,0.0982439]
[1731793470508,0.004,90950.0,90946.0,0.2081979]
[1731793470972,0.0458,90948.0,90946.0,0.0982439]
[1731793471189,0.0458,90948.0,90947.0,0.109954]
[1731793471618,0.0458,90948.0,90943.0,0.14289694]
[1731793471877,0.0458,90948.0,90945.0,0.17593]
[1731793472085,0.0458,90948.0,90947.0,0.109954]
[1731793472313,0.0458,90948.0,90945.0,0.109956]
[1731793472551,0.0458,90948.0,90946.0,0.109955]
[1731793473670,0.0458,90948.0,90946.0,0.1077054]
[1731793481906,0.0458,90948.0,90942.0,0.175936]
[1731793482125,0.0458,90948.0,90947.0,0.109954]
[1731793482347,0.0466572,90948.0,90947.0,0.109954]
[1731793482565,0.0466572,90948.0,90945.0,0.19214813]
[1731793482779,0.0466572,90948.0,90946.0,0.109955]
[1731793483004,0.0466572,90948.0,90947.0,0.109954]
[1731793486100,0.0466572,90948.0,90947.0,0.20805758]
[1731793486311,0.0466572,90948.0,90947.0,0.109954]
[1731793486763,0.0466572,90948.0,90947.0,0.20801569]
[1731793486998,0.0466572,90948.0,90947.0,0.109954]
[1731793488107,0.0466572,90948.0,90947.0,0.20801569]
[1731793488339,0.0466572,90948.0,90947.0,0.109954]
[1731793491951,0.0466572,90948.0,90944.0,0.0017144]
[1731793491952,0.1275,90947.0,90944.0,0.0017144]
[1731793492183,0.0466,90946.0,90944.0,0.0017144]
[1731793492601,0.0466,90946.0,90945.0,0.109956]
[1731793493330,0.0466,90946.0,90944.0,0.0017144]
[1731793493778,0.1275,90945.0,90944.0,0.0017144]
[1731793494002,0.237456,90945.0,90944.0,0.0017144]
[1731793494223,0.241456,90945.0,90944.0,0.0017144]
[1731793494898,0.24118514,90945.0,90944.0,0.0017144]
[1731793495134,0.13122914,90945.0,90944.0,0.0017144]
[1731793497391,0.0506,90945.0,90944.0,0.1116714]
[1731793498092,0.0506,90945.0,90944.0,0.0017144]
[1731793498542,0.160556,90945.0,90944.0,0.0017144]
[1731793498989,0.0506,90945.0,90944.0,0.0017144]
[1731793501691,0.160556,90945.0,90944.0,0.0017144]
[1731793501924,0.0506,90945.0,90944.0,0.0017144]
[1731793503074,0.160556,90945.0,90944.0,0.0017144]
[1731793503530,0.0506,90945.0,90944.0,0.0017144]
[1731793506324,0.160556,90945.0,90944.0,0.0017144]
[1731793510115,0.24311873,90945.0,90944.0,0.0017144]
[1731793511700,0.13316273,90945.0,90944.0,0.0017144]
[1731793512676,0.24311873,90945.0,90944.0,0.0017144]
[1731793513601,0.13316273,90945.0,90944.0,0.0017144]
[1731793517122,0.13316273,90945.0,90944.0,0.1116714]
[1731793518068,0.0008572,90948.0,90947.0,0.109954]
[1731793518296,0.0008572,90948.0,90947.0,0.19214713]
[1731793518514,0.0008572,90948.0,90947.0,0.33956572]
[1731793518958,0.0008572,90948.0,90947.0,0.19214713]
[1731793520874,0.0008572,90948.0,90947.0,0.38870525]
[1731793521753,0.0008572,90948.0,90947.0,0.19214713]
[1731793523249,0.0008572,90948.0,90947.0,0.31884713]
[1731793523471,0.0008572,90948.0,90947.0,0.43290968]
[1731793523702,0.0008572,90948.0,90947.0,0.62936957]
[1731793523960,0.0008572,90948.0,90947.0,0.43290968]
[1731793524216,0.0008572,90948.0,90947.0,0.67848454]
[1731793525094,0.0008572,90948.0,90947.0,0.51610281]
[1731793526870,0.0008572,90948.0,90947.0,0.51810281]
[1731793527749,0.0008572,90948.0,90947.0,0.54945272]
[1731793527974,0.0008572,90948.0,90947.0,0.51810281]
[1731793528218,0.0008572,90948.0,90947.0,0.54945815]
[1731793528865,0.0008572,90948.0,90947.0,0.54745815]
[1731793529365,0.0008572,90948.0,90947.0,0.51610281]
[1731793532289,0.0008572,90948.0,90947.0,0.51810281]
[1731793532516,0.0008572,90948.0,90947.0,0.22501655]
[1731793533019,0.1250572,90948.0,90947.0,0.20800915]
[1731793533238,0.1250572,90948.0,90947.0,0.109954]
[1731793533895,0.1250572,90948.0,90944.0,0.0017144]
[1731793534108,0.1250572,90948.0,90947.0,0.109954]
[1731793534552,0.1290572,90948.0,90947.0,0.109954]
[1731793535437,0.1290572,90948.0,90944.0,0.0017144]
[1731793535438,0.160556,90945.0,90944.0,0.0017144]
[1731793535642,0.238156,90945.0,90944.0,0.0017144]
[1731793541419,0.2398704,90945.0,90944.0,0.0017144]
[1731793550654,0.1299144,90945.0,90944.0,0.1116714]
[1731793550868,0.0057144,90945.0,90944.0,0.1116714]
[1731793554635,0.0017144,90945.0,90944.0,0.1116714]
[1731793554861,0.0057144,90945.0,90944.0,0.1116714]
[1731793555374,0.0017144,90945.0,90944.0,0.15525042]
[1731793555622,0.0057144,90945.0,90944.0,0.15525042]
[1731793557710,0.0853144,90945.0,90944.0,0.15525042]
[1731793558643,0.1952704,90945.0,90944.0,0.0017144]
[1731793559776,0.30433295,90945.0,90944.0,0.0017144]
[1731793559993,0.35293295,90945.0,90944.0,0.0017144]
[1731793565187,0.35793295,90945.0,90944.0,0.0017144]
[1731793565402,0.35793295,90945.0,90927.0,0.0008567]
[1731793565403,0.236677,90928.0,90927.0,0.0008567]
[1731793568186,0.34573955,90928.0,90927.0,0.0008567]
[1731793568856,0.37873955,90928.0,90927.0,0.0008567]
[1731793570207,0.42442981,90928.0,90927.0,0.0008567]
[1731793572719,0.52642981,90928.0,90927.0,0.0008567]
[1731793572970,0.348679,90926.0,90912.0,0.0008568]
[1731793573204,0.125981,90924.0,90912.0,0.0008568]
[1731793573405,0.60601365,90924.0,90912.0,0.0008568]
[1731793581781,0.48074355,90924.0,90912.0,0.0008568]
[1731793584020,0.146995,90913.0,90912.0,0.0008568]
[1731793584240,0.38465755,90913.0,90912.0,0.0008568]
[1731793587408,0.38665755,90913.0,90912.0,0.0008568]
[1731793588146,0.43036594,90913.0,90912.0,0.0008568]
[1731793594982,0.89862107,90913.0,90912.0,0.0008568]
[1731793595635,0.89798357,90913.0,90912.0,0.0008568]
[1731793599445,0.89998357,90913.0,90912.0,0.0008568]
[1731793599679,0.99998357,90913.0,90912.0,0.0008568]
[1731793605471,0.99998357,90913.0,90912.0,0.00061205]
[1731793610840,1.09840065,90913.0,90912.0,0.00061205]
[1731793611085,0.99998357,90913.0,90912.0,0.00061205]
[1731793611514,1.09856705,90913.0,90912.0,0.00061205]
[1731793611729,0.99998357,90913.0,90912.0,0.00061205]
[1731793612167,1.09856657,90913.0,90912.0,0.00061205]
[1731793612379,0.99998357,90913.0,90912.0,0.00061205]
[1731793612605,1.1476092,90913.0,90912.0,0.00061205]
[1731793613101,0.99998357,90913.0,90912.0,0.00061205]
[1731793613314,1.36414064,90913.0,90912.0,0.00061205]
[1731793613523,0.99998357,90913.0,90912.0,0.00061205]
[1731793613739,1.14795493,90913.0,90912.0,0.00061205]
[1731793613955,1.36413633,90913.0,90912.0,0.00061205]
[1731793614403,1.36413633,90913.0,90874.0,0.176067]
[1731793614404,0.004,90879.0,90874.0,0.176067]
[1731793614663,0.004,90879.0,90878.0,0.16499381]
[1731793614871,0.004,90879.0,90875.0,0.11004]
[1731793615119,0.004,90879.0,90873.0,0.110042]
[1731793615542,0.004,90879.0,90871.0,0.0456]
[1731793615779,0.110044,90872.0,90871.0,0.0456]
[1731793616857,0.110042,90874.0,90871.0,0.0456]
[1731793617092,0.110042,90874.0,90862.0,0.09849472]
[1731793617093,0.162646,90871.0,90862.0,0.09849472]
[1731793617309,0.27670855,90871.0,90860.0,0.0009811]
[1731793617520,0.29970855,90871.0,90860.0,0.0009811]
[1731793617984,0.30470855,90871.0,90855.0,0.0008571]
[1731793620506,0.38480855,90871.0,90855.0,0.0008571]
[1731793620751,0.51741224,90871.0,90855.0,0.0008571]
[1731793621476,0.51941224,90871.0,90855.0,0.0008571]
[1731793621722,0.56382222,90871.0,90855.0,0.0008571]
[1731793625220,0.53121853,90871.0,90855.0,0.0008571]
[1731793628803,0.50046418,90856.0,90855.0,0.0008571]
[1731793629017,0.60952673,90856.0,90855.0,0.0008571]
[1731793630108,0.63001728,90856.0,90855.0,0.0008571]
[1731793630789,0.63001171,90856.0,90855.0,0.0008571]
[1731793631005,0.6626154,90856.0,90855.0,0.0008571]
[1731793631230,0.63201171,90856.0,90855.0,0.0008571]
[1731793632144,0.63001171,90856.0,90855.0,0.0008571]
[1731793632986,0.60952673,90856.0,90855.0,0.0008571]
[1731793633199,0.48412655,90856.0,90855.0,0.0008571]
[1731793633414,0.43582655,90856.0,90855.0,0.0008571]
[1731793633843,0.48017684,90856.0,90855.0,0.0008571]
[1731793635452,0.40047684,90856.0,90855.0,0.0008571]
[1731793635881,0.39547684,90856.0,90855.0,0.0008571]
[1731793636192,0.26747684,90856.0,90855.0,0.0008571]
[1731793636398,0.114064,90856.0,90855.0,0.0008571]
[1731793640438,0.004,90856.0,90855.0,0.0008571]
[1731793640645,0.004,90862.0,90856.0,0.0403]
[1731793640876,0.004,90862.0,90858.0,0.11006]
[1731793641095,0.004,90862.0,90856.0,0.0403]
[1731793641306,0.004,90862.0,90857.0,0.165094]
[1731793641533,0.004,90862.0,90856.0,0.0403]
[1731793641755,0.004,90867.0,90856.0,0.0403]
[1731793641966,0.004,90867.0,90866.0,0.110052]
[1731793642188,0.004,90871.0,90866.0,0.12540018]
[1731793642435,0.11005,90868.0,90859.0,0.29049018]
[1731793642653,0.11005,90868.0,90861.0,0.110057]
[1731793642881,0.110047,90870.0,90863.0,0.110054]
[1731793643125,0.004,90871.0,90864.0,0.110053]
[1731793643343,0.004,90871.0,90861.0,0.165087]
[1731793643344,0.004,90871.0,90867.0,0.11005]
[1731793643574,0.004,90871.0,90859.0,0.12540018]
[1731793643575,0.004,90871.0,90866.0,0.110051]
[1731793644725,0.004,90871.0,90862.0,0.33017]
[1731793644942,0.004,90871.0,90862.0,0.165085]
[1731793645142,0.004,90871.0,90867.0,0.11005]
[1731793645352,0.004,90871.0,90860.0,0.330178]
[1731793645583,0.004,90871.0,90856.0,0.0403]
[1731793645584,0.0017156,90873.0,90872.0,0.110044]
[1731793649156,0.0017156,90873.0,90872.0,0.15460874]
[1731793650943,0.0017156,90873.0,90872.0,0.48197147]
[1731793651204,0.0017156,90873.0,90872.0,0.35657129]
[1731793653880,0.16499381,90893.0,90885.0,0.001]
[1731793654097,0.16499381,90893.0,90892.0,0.23542018]
[1731793654553,0.16499381,90903.0,90902.0,0.110008]
[1731793654554,0.16899381,90903.0,90902.0,0.110008]
[1731793654762,0.16499381,90903.0,90902.0,0.110008]
[1731793654967,0.004,90905.0,90898.0,0.16502]
[1731793655187,0.004,90907.0,90901.0,0.12540018]
[1731793655413,0.004,90906.0,90903.0,0.165011]
[1731793655622,0.004,90906.0,90905.0,0.110004]
[1731793655835,0.004,90907.0,90905.0,0.110004]
[1731793656058,0.004,90907.0,90901.0,0.12540018]
[1731793656267,0.004,90912.0,90903.0,0.165011]
[1731793656493,0.004,90912.0,90911.0,0.109997]
[1731793656711,0.46996993,90913.0,90910.0,0.12540018]
[1731793656712,0.46996993,90913.0,90912.0,0.109996]
[1731793662824,0.46996993,90913.0,90912.0,0.15450081]
[1731793663057,0.46996993,90913.0,90912.0,0.109996]
[1731793663301,0.46933236,90913.0,90912.0,0.109996]
[1731793666541,0.46933236,90913.0,90912.0,0.10091421]
[1731793669079,0.46933236,90913.0,90912.0,0.10177161]
[1731793670284,0.46933236,90913.0,90912.0,0.21083416]
[1731793670525,0.0017146,90923.0,90912.0,0.21083416]
[1731793670526,0.0017146,90923.0,90922.0,0.109984]
[1731793670778,0.0017146,90923.0,90922.0,0.35264612]
[1731793671005,0.0017146,90923.0,90922.0,0.35044673]
[1731793671922,0.0017146,90923.0,90922.0,0.39781842]
[1731793672128,0.0017146,90923.0,90922.0,0.39581842]
[1731793673961,0.0017146,90923.0,90922.0,0.15635569]
[1731793675322,0.0017146,90923.0,90922.0,0.109984]
[1731793677026,0.0017146,90923.0,90908.0,0.001]
[1731793677235,0.0017146,90923.0,90917.0,0.164984]
[1731793677455,0.0017146,90923.0,90922.0,0.109984]
[1731793677909,0.0017146,90923.0,90915.0,0.164989]
[1731793678150,0.0017146,90923.0,90920.0,0.109986]
[1731793679267,0.0017146,90923.0,90918.0,0.164983]
[1731793679529,0.0017146,90923.0,90922.0,0.109984]
[1731793682387,0.0017146,90923.0,90919.0,0.164982]
[1731793682613,0.0017146,90923.0,90922.0,0.109984]
[1731793684008,0.55000265,90923.0,90922.0,0.109984]
[1731793684960,0.55000265,90923.0,90918.0,0.109988]
[1731793685195,0.55000265,90923.0,90912.0,0.0008574]
[1731793685196,0.0823,90922.0,90912.0,0.0008574]
[1731793685429,0.0823,90922.0,90914.0,0.164991]
[1731793685669,0.0823,90922.0,90921.0,0.109985]
[1731793685919,0.0823,90922.0,90912.0,0.0008574]
[1731793685920,0.0823,90922.0,90915.0,0.164989]
[1731793686153,0.0823,90922.0,90920.0,0.109985]
[1731793686631,0.0823,90922.0,90917.0,0.164985]
[1731793687119,0.0823,90922.0,90912.0,0.0008574]
[1731793687120,0.16499381,90920.0,90912.0,0.0008574]
[1731793687340,0.109994,90914.0,90912.0,0.0008574]
[1731793687569,0.1307,90916.0,90912.0,0.0008574]
[1731793687570,0.004,90915.0,90912.0,0.0008574]
[1731793688938,0.004,90915.0,90914.0,0.109994]
[1731793689175,0.0823,90916.0,90915.0,0.109992]
[1731793689400,0.0863,90916.0,90915.0,0.109992]
[1731793690366,0.0823,90916.0,90915.0,0.109992]
[1731793690598,0.55000265,90923.0,90922.0,0.109984]
[1731793690864,0.55000265,90923.0,90922.0,0.23538418]
[1731793699558,0.55000265,90923.0,90922.0,0.33355791]
[1731793700192,0.55000265,90923.0,90922.0,0.23538418]
[1731793700402,0.55000265,90923.0,90922.0,0.33361906]
[1731793701051,0.55000265,90923.0,90922.0,0.23538418]
[1731793702432,0.55000265,90923.0,90922.0,0.3827365]
[1731793703304,0.55000265,90923.0,90922.0,0.23538418]
[1731793703536,0.55000265,90923.0,90922.0,0.38277275]
[1731793703760,0.55000265,90923.0,90922.0,0.23538418]
[1731793706736,0.55000265,90923.0,90922.0,0.43176187]
[1731793707162,0.55000265,90923.0,90922.0,0.4317614]
[1731793708497,0.67550265,90923.0,90922.0,0.30636122]
[1731793708720,0.67550265,90923.0,90918.0,0.09821085]
[1731793708721,0.0792,90922.0,90918.0,0.09821085]
[1731793709001,0.0792,90922.0,90921.0,0.109985]
[1731793709678,0.0792,90922.0,90918.0,0.164982]
[1731793709679,0.55000265,90923.0,90922.0,0.109984]
[1731793710144,0.55000265,90923.0,90922.0,0.30644499]
[1731793710366,0.55000265,90923.0,90922.0,0.109984]
[1731793711468,0.55000265,90923.0,90922.0,0.35556024]
[1731793712159,0.55000265,90923.0,90922.0,0.109984]
[1731793714077,0.55000265,90923.0,90922.0,0.35550871]
[1731793714508,0.55000265,90923.0,90922.0,0.109984]
[1731793715466,0.55000265,90923.0,90922.0,0.4716354]
[1731793715695,0.55000265,90923.0,90922.0,0.25544255]
[1731793715933,0.55000265,90923.0,90922.0,0.25644255]
[1731793719853,0.55000265,90923.0,90922.0,0.25844255]
[1731793720081,0.55000265,90923.0,90922.0,0.55307221]
[1731793720382,0.55000265,90923.0,90922.0,0.25844255]
[1731793720601,0.55000265,90923.0,90922.0,0.55312251]
[1731793720829,0.55000265,90923.0,90922.0,0.25844255]
[1731793721775,0.55000265,90923.0,90922.0,0.55307829]
[1731793721997,0.55000265,90923.0,90922.0,0.55308701]
[1731793722221,0.55000265,90923.0,90922.0,0.25844255]
[1731793722656,0.55000265,90923.0,90922.0,0.55313741]
[1731793723095,0.55000265,90923.0,90922.0,0.25844255]
[1731793723314,0.55000265,90923.0,90922.0,0.55316292]
[1731793723801,0.55000265,90923.0,90922.0,0.25844255]
[1731793724269,0.55000265,90923.0,90922.0,0.55315208]
[1731793725130,0.55000265,90923.0,90922.0,0.25844255]
[1731793725367,0.55000265,90923.0,90922.0,0.55319879]
[1731793725819,0.55000265,90923.0,90922.0,0.25753872]
[1731793726233,0.55000265,90923.0,90922.0,0.55228391]
[1731793726697,0.55000265,90923.0,90922.0,0.25753872]
[1731793727361,0.55000265,90923.0,90922.0,0.55228391]
[1731793728073,0.55000265,90923.0,90922.0,0.55225957]
[1731793728303,0.55000265,90923.0,90922.0,0.25753872]
[1731793728963,0.55000265,90923.0,90922.0,0.55225957]
[1731793730081,0.55000265,90923.0,90922.0,0.25753872]
[1731793730301,0.55000265,90923.0,90922.0,0.55225957]
[1731793730751,0.55000265,90923.0,90922.0,0.25753872]
[1731793731428,0.55000265,90923.0,90922.0,0.55225957]
[1731793732306,0.55000265,90923.0,90922.0,0.25753872]
[1731793732543,0.55000265,90923.0,90922.0,0.90090129]
[1731793732761,0.55000265,90923.0,90922.0,0.55240492]
[1731793732970,0.55000265,90923.0,90922.0,0.25753872]
[1731793735204,0.55000265,90923.0,90922.0,0.25553872]
[1731793735427,0.55000265,90923.0,90922.0,0.25753872]
[1731793737236,0.55000265,90923.0,90922.0,0.69292709]
[1731793738096,0.55000265,90923.0,90922.0,0.25753872]
[1731793738788,0.55000265,90923.0,90922.0,0.25839582]
[1731793739498,0.55000265,90923.0,90922.0,0.69378419]
[1731793739706,0.55000265,90923.0,90922.0,0.25839582]
[1731793740980,0.55000265,90923.0,90922.0,0.21904655]
[1731793742178,0.67930265,90923.0,90922.0,0.109984]
[1731793744231,0.67930265,90923.0,90922.0,0.25762938]
[1731793744455,0.67930265,90923.0,90922.0,0.109984]
[1731793746863,0.67670265,90923.0,90922.0,0.0984678]
[1731793747110,0.67670265,90923.0,90919.0,0.2084558]
[1731793747111,0.1267,90920.0,90919.0,0.2084558]
[1731793747388,0.1267,90920.0,90919.0,0.109988]
[1731793749138,0.127,90920.0,90914.0,0.21053748]
[1731793749365,0.127,90917.0,90916.0,0.109991]
[1731793749588,0.127,90916.0,90914.0,0.04554748]
[1731793749805,0.109988,90919.0,90914.0,0.15554048]
[1731793750029,0.127,90917.0,90914.0,0.109993]
[1731793750278,0.0814,90919.0,90914.0,0.109993]
[1731793750499,0.0814,90917.0,90913.0,0.0008574]
[1731793750727,0.0456,90916.0,90915.0,0.109992]
[1731793750969,0.127,90916.0,90915.0,0.109992]
[1731793756935,0.127,90915.0,90914.0,0.109994]
[1731793757392,0.127,90915.0,90913.0,0.0008574]
[1731793757630,0.127,90914.0,90913.0,0.1108524]
[1731793760365,0.0814,90914.0,90913.0,0.1108524]
[1731793760585,0.0814,90914.0,90913.0,0.25847793]
[1731793761006,0.0814,90914.0,90913.0,0.1108524]
[1731793763419,0.0814,90914.0,90913.0,0.2582522]
[1731793763561,0.0814,90914.0,90913.0,0.1108524]
[1731793763976,0.0814,90914.0,90913.0,0.2582522]
[1731793765627,0.0814,90914.0,90913.0,0.20914153]
[1731793765803,0.0814,90914.0,90913.0,0.1108524]
[1731793766844,0.0814,90914.0,90913.0,0.20913988]
[1731793767067,0.0814,90914.0,90913.0,0.1108524]
[1731793770583,0.0814,90914.0,90913.0,0.2582522]
[1731793771262,0.0814,90914.0,90913.0,0.1108524]
[1731793771717,0.0814,90914.0,90913.0,0.2091712]
[1731793771948,0.0814,90914.0,90913.0,0.1108524]
[1731793773507,0.0814,90914.0,90913.0,0.25832579]
[1731793774255,0.0814,90914.0,90913.0,0.1108524]
[1731793774466,0.1282,90914.0,90913.0,0.1108524]
[1731793774704,0.12756251,90914.0,90913.0,0.1108524]
[1731793785441,0.12756251,90914.0,90913.0,0.2092216]
[1731793785717,0.12756251,90914.0,90913.0,0.1108524]
[1731793785949,0.12756251,90914.0,90913.0,0.2092216]
[1731793786187,0.12756251,90914.0,90913.0,0.1108524]
[1731793786399,0.12756251,90914.0,90913.0,0.209335]
[1731793787036,0.12756251,90914.0,90913.0,0.1108524]
[1731793787458,0.12756251,90914.0,90913.0,0.20933359]
[1731793787665,0.12756251,90914.0,90913.0,0.1108524]
[1731793788333,0.12756251,90914.0,90913.0,0.20936977]
[1731793788556,0.12756251,90914.0,90913.0,0.1108524]
[1731793790456,0.12756251,90914.0,90913.0,0.0008574]
[1731793791139,0.24455651,90914.0,90913.0,0.09942394]
[1731793791353,0.24955651,90914.0,90913.0,0.0008574]
[1731793791597,0.24755651,90914.0,90913.0,0.0008574]
[1731793792076,0.24955651,90914.0,90913.0,0.0008574]
[1731793793159,0.27255651,90914.0,90913.0,0.0008574]
[1731793797932,0.27427091,90914.0,90913.0,0.0008574]
[1731793798377,0.16427691,90914.0,90913.0,0.0008574]
[1731793798829,0.27427091,90914.0,90913.0,0.0008574]
[1731793799933,0.16427691,90914.0,90913.0,0.0008574]
[1731793801825,0.27427091,90914.0,90913.0,0.0008574]
[1731793805116,0.38333346,90914.0,90913.0,0.0008574]
[1731793805568,0.38133346,90914.0,90913.0,0.0008574]
[1731793807404,0.38333346,90914.0,90913.0,0.0008574]
[1731793808537,0.38133346,90914.0,90913.0,0.0008574]
[1731793809491,0.15927691,90914.0,90913.0,0.1108524]
[1731793809730,0.08947691,90914.0,90913.0,0.1930802]
[1731793810419,0.08447691,90914.0,90913.0,0.1930802]
[1731793810641,0.08947691,90914.0,90913.0,0.1930802]
[1731793810859,0.08947691,90914.0,90913.0,0.1108524]
[1731793812267,0.08247691,90914.0,90913.0,0.1108524]
[1731793812552,0.0017144,90914.0,90913.0,0.1108524]
[1731793812772,0.0017144,90914.0,90913.0,0.38387891]
[1731793812999,0.0017144,90914.0,90913.0,0.23614438]
[1731793814839,0.0017144,90914.0,90913.0,0.4823686]
[1731793815306,0.0017144,90914.0,90913.0,0.23614438]
[1731793816448,0.0017144,90914.0,90913.0,0.23834402]
[1731793816680,0.0017144,90914.0,90913.0,0.48456824]
[1731793816898,0.0017144,90914.0,90913.0,0.4823686]
[1731793817848,0.0017144,90914.0,90913.0,0.23614438]
[1731793818756,0.0017144,90914.0,90913.0,0.48226552]
[1731793819426,0.0017144,90914.0,90913.0,0.23614438]
[1731793819883,0.0017144,90914.0,90913.0,0.48226707]
[1731793820101,0.0017144,90914.0,90913.0,0.43180693]
[1731793823349,0.0017144,90914.0,90913.0,0.39080693]
[1731793823569,0.0017144,90914.0,90913.0,0.1108524]
[1731793824493,0.0017144,90914.0,90913.0,0.35691267]
[1731793824960,0.0017144,90914.0,90913.0,0.48220465]
[1731793825201,0.0017144,90914.0,90913.0,0.34520693]
[1731793825438,0.0017144,90914.0,90913.0,0.59124886]
[1731793825670,0.0017144,90914.0,90913.0,0.46595688]
[1731793827935,0.0017144,90914.0,90913.0,0.21991495]
[1731793828902,0.0017144,90914.0,90913.0,0.26501495]
[1731793831109,0.0017144,90914.0,90913.0,0.21991495]
[1731793832455,0.0017144,90914.0,90913.0,0.46577916]
[1731793832688,0.0017144,90914.0,90913.0,0.59107114]
[1731793833146,0.0017144,90914.0,90913.0,0.34520693]
[1731793833379,0.0017144,90914.0,90913.0,0.59107114]
[1731793833803,0.0017144,90914.0,90913.0,0.34520693]
[1731793834050,0.0017144,90914.0,90913.0,0.23614438]
[1731793834266,0.0017144,90914.0,90913.0,0.43285877]
[1731793836082,0.0017144,90914.0,90913.0,0.30756679]
[1731793836298,0.0017144,90914.0,90913.0,0.1108524]
[1731793836533,0.1330144,90914.0,90913.0,0.1108524]
[1731793837235,0.1400144,90914.0,90913.0,0.0008574]
[1731793837690,0.1313,90907.0,90905.0,0.165007]
[1731793837932,0.1313,90907.0,90906.0,0.110003]